[Event "Titled Tuesday Blitz April 4 Early 2023"]
[White "Svane, Rasmus"]
[Black "Korobov, Anton"]
[WhiteFideId "4657101"]
[BlackFideId "14105730"]
[WhiteElo "2597"]
[BlackElo "2638"]
[Result "1/2-1/2"]
[Round "07"]
[TimeControl "180+2"]
[Date "2023.04.04"]
[WhiteClock "0:00:17"]
[BlackClock "0:00:25"]

1. Nf3 {[%clk 0:03:00]}  Nf6 {[%clk 0:02:55]} 2. g3 {[%clk 0:03:00]}  d5 {[%clk 0:02:53]} 3. Bg2 {[%clk 0:03:00]}  c6 {[%clk 0:02:50]} 4. O-O {[%clk 0:03:00]}  Bf5 {[%clk 0:02:50]} 5. c4 {[%clk 0:03:00]}  e6 {[%clk 0:02:50]} 6. Qb3 {[%clk 0:03:00]}  Qb6 {[%clk 0:02:47]} 7. d3 {[%clk 0:03:00]}  Nbd7 {[%clk 0:02:42]} 8. cxd5 {[%clk 0:03:01]}  exd5 {[%clk 0:02:40]} 9. Qc2 {[%clk 0:03:01]}  Qc5 {[%clk 0:02:27]} 10. Qc3 {[%clk 0:02:59]}  Be7 {[%clk 0:02:24]} 11. Be3 {[%clk 0:02:55]}  Qxc3 {[%clk 0:02:21]} 12. bxc3 {[%clk 0:02:56]}  Nc5 {[%clk 0:02:12]} 13. a4 {[%clk 0:02:44]}  Ng4 {[%clk 0:02:08]} 14. Bd4 {[%clk 0:02:26]}  Ne6 {[%clk 0:02:06]} 15. h3 {[%clk 0:02:27]}  Nf6 {[%clk 0:02:01]} 16. Nbd2 {[%clk 0:02:27]}  Nxd4 {[%clk 0:01:58]} 17. Nxd4 {[%clk 0:02:28]}  Bd7 {[%clk 0:01:58]} 18. Rfb1 {[%clk 0:02:27]}  Rb8 {[%clk 0:01:55]} 19. c4 {[%clk 0:02:22]}  O-O {[%clk 0:01:48]} 20. Ra2 {[%clk 0:01:35]}  a5 {[%clk 0:01:42]} 21. cxd5 {[%clk 0:01:33]}  Nxd5 {[%clk 0:01:40]} 22. Bxd5 {[%clk 0:01:22]}  cxd5 {[%clk 0:01:41]} 23. Kg2 {[%clk 0:01:17]}  Rfc8 {[%clk 0:01:38]} 24. N2f3 {[%clk 0:01:12]}  f6 {[%clk 0:01:35]} 25. Nb5 {[%clk 0:01:13]}  Bb4 {[%clk 0:01:28]} 26. Nfd4 {[%clk 0:01:13]}  Rc5 {[%clk 0:01:17]} 27. Nc2 {[%clk 0:01:11]}  Bxb5 {[%clk 0:01:09]} 28. Nxb4 {[%clk 0:01:11]}  axb4 {[%clk 0:00:55]} 29. axb5 {[%clk 0:01:11]}  Rxb5 {[%clk 0:00:56]} 30. Rab2 {[%clk 0:01:09]}  Kf7 {[%clk 0:00:56]} 31. Kf3 {[%clk 0:01:06]}  Ke6 {[%clk 0:00:56]} 32. Ke3 {[%clk 0:01:04]}  Kd6 {[%clk 0:00:56]} 33. Kd4 {[%clk 0:01:03]}  Ra8 {[%clk 0:00:48]} 34. Rxb4 {[%clk 0:01:00]}  Ra4 {[%clk 0:00:48]} 35. Rxa4 {[%clk 0:00:51]}  Rxb1 {[%clk 0:00:49]} 36. Ra8 {[%clk 0:00:51]}  Rb2 {[%clk 0:00:47]} 37. Rg8 {[%clk 0:00:44]}  Rxe2 {[%clk 0:00:44]} 38. Rxg7 {[%clk 0:00:44]}  Rxf2 {[%clk 0:00:40]} 39. Rxb7 {[%clk 0:00:41]}  Rf3 {[%clk 0:00:41]} 40. Rxh7 {[%clk 0:00:29]}  Rxg3 {[%clk 0:00:41]} 41. h4 {[%clk 0:00:29]}  Rg4+ {[%clk 0:00:37]} 42. Ke3 {[%clk 0:00:29]}  Ke5 {[%clk 0:00:37]} 43. Kf3 {[%clk 0:00:26]}  Rf4+ {[%clk 0:00:37]} 44. Ke3 {[%clk 0:00:25]}  d4+ {[%clk 0:00:37]} 45. Ke2 {[%clk 0:00:26]}  Kf5 {[%clk 0:00:37]} 46. h5 {[%clk 0:00:23]}  Rh4 {[%clk 0:00:37]} 47. Rh8 {[%clk 0:00:22]}  Kg5 {[%clk 0:00:34]} 48. Kf3 {[%clk 0:00:21]}  Rxh5 {[%clk 0:00:23]} 49. Rxh5+ {[%clk 0:00:15]}  Kxh5 {[%clk 0:00:24]} 50. Ke4 {[%clk 0:00:16]}  Kg4 {[%clk 0:00:23]} 51. Kxd4 {[%clk 0:00:16]}  f5 {[%clk 0:00:24]} 52. Ke3 {[%clk 0:00:17]}  Kg3 {[%clk 0:00:24]} 53. Ke2 {[%clk 0:00:17]}  f4 {[%clk 0:00:25]} 54. Kf1 {[%clk 0:00:17]}  Kf3 {[%clk 0:00:25]} 55. d4 {[%clk 0:00:16]}  Ke4 {[%clk 0:00:25]} 56. Kf2 {[%clk 0:00:17]}  Kxd4 {[%clk 0:00:25]} 57. Kf3 {[%clk 0:00:17]} 1/2-1/2


[Site "https://www.chess.com"]

[Event "Titled Tuesday Blitz April 4 Early 2023"]
[White "Narayanan, Srinath"]
[Black "Duda, Jan-Krzysztof"]
[WhiteFideId "5018420"]
[BlackFideId "1170546"]
[WhiteElo "2438"]
[BlackElo "2790"]
[Result "0-1"]
[Round "07"]
[TimeControl "180+2"]
[Date "2023.04.04"]
[WhiteClock "0:00:01"]
[BlackClock "0:00:06"]

1. Nf3 {[%clk 0:03:00]}  Nf6 {[%clk 0:02:59]} 2. c4 {[%clk 0:03:00]}  e6 {[%clk 0:02:56]} 3. e3 {[%clk 0:02:57]}  d5 {[%clk 0:02:56]} 4. Nc3 {[%clk 0:02:57]}  Bd6 {[%clk 0:02:53]} 5. b3 {[%clk 0:02:57]}  O-O {[%clk 0:02:51]} 6. Bb2 {[%clk 0:02:58]}  a6 {[%clk 0:02:51]} 7. Rc1 {[%clk 0:02:57]}  Re8 {[%clk 0:02:47]} 8. g3 {[%clk 0:02:53]}  c5 {[%clk 0:02:37]} 9. cxd5 {[%clk 0:02:48]}  exd5 {[%clk 0:02:38]} 10. Bg2 {[%clk 0:02:49]}  Nc6 {[%clk 0:02:33]} 11. d4 {[%clk 0:02:46]}  cxd4 {[%clk 0:02:22]} 12. Nxd4 {[%clk 0:02:47]}  Nxd4 {[%clk 0:02:23]} 13. Qxd4 {[%clk 0:02:47]}  Be5 {[%clk 0:02:23]} 14. Qd2 {[%clk 0:02:30]}  Be6 {[%clk 0:01:22]} 15. Ne2 {[%clk 0:01:55]}  Bxb2 {[%clk 0:01:09]} 16. Qxb2 {[%clk 0:01:56]}  h5 {[%clk 0:01:05]} 17. O-O {[%clk 0:01:34]}  h4 {[%clk 0:01:03]} 18. Nf4 {[%clk 0:01:32]}  hxg3 {[%clk 0:00:57]} 19. hxg3 {[%clk 0:01:31]}  Qe7 {[%clk 0:00:38]} 20. Rfd1 {[%clk 0:01:26]}  Rad8 {[%clk 0:00:38]} 21. Qd4 {[%clk 0:01:19]}  Rd7 {[%clk 0:00:37]} 22. Qc5 {[%clk 0:01:14]}  Kf8 {[%clk 0:00:20]} 23. Rd2 {[%clk 0:01:08]}  Red8 {[%clk 0:00:19]} 24. Qd4 {[%clk 0:00:52]}  Ne4 {[%clk 0:00:17]} 25. Rdc2 {[%clk 0:00:52]}  Bf5 {[%clk 0:00:13]} 26. Rc8 {[%clk 0:00:47]}  Nf6 {[%clk 0:00:04]} 27. Qb6 {[%clk 0:00:41]}  Kg8 {[%clk 0:00:03]} 28. Rxd8+ {[%clk 0:00:40]}  Qxd8 {[%clk 0:00:04]} 29. Qxd8+ {[%clk 0:00:37]}  Rxd8 {[%clk 0:00:05]} 30. Rc7 {[%clk 0:00:38]}  b5 {[%clk 0:00:05]} 31. Ne2 {[%clk 0:00:31]}  Rc8 {[%clk 0:00:03]} 32. Rxc8+ {[%clk 0:00:29]}  Bxc8 {[%clk 0:00:04]} 33. Nd4 {[%clk 0:00:30]}  Kf8 {[%clk 0:00:04]} 34. Kf1 {[%clk 0:00:31]}  Ke7 {[%clk 0:00:04]} 35. Ke2 {[%clk 0:00:32]}  Kd6 {[%clk 0:00:05]} 36. Kd3 {[%clk 0:00:32]}  b4 {[%clk 0:00:05]} 37. Kd2 {[%clk 0:00:28]}  a5 {[%clk 0:00:06]} 38. f3 {[%clk 0:00:28]}  Nd7 {[%clk 0:00:05]} 39. Bh3 {[%clk 0:00:27]}  g6 {[%clk 0:00:05]} 40. Bxd7 {[%clk 0:00:27]}  Bxd7 {[%clk 0:00:06]} 41. g4 {[%clk 0:00:28]}  g5 {[%clk 0:00:06]} 42. Ne2 {[%clk 0:00:27]}  f5 {[%clk 0:00:06]} 43. gxf5 {[%clk 0:00:27]}  Bxf5 {[%clk 0:00:07]} 44. Nd4 {[%clk 0:00:26]}  Bb1 {[%clk 0:00:08]} 45. Kc1 {[%clk 0:00:26]}  Bg6 {[%clk 0:00:08]} 46. Ne2 {[%clk 0:00:23]}  Bd3 {[%clk 0:00:08]} 47. Ng3 {[%clk 0:00:22]}  Bg6 {[%clk 0:00:08]} 48. Kb2 {[%clk 0:00:19]}  Ke5 {[%clk 0:00:09]} 49. a3 {[%clk 0:00:19]}  d4 {[%clk 0:00:08]} 50. axb4 {[%clk 0:00:16]}  axb4 {[%clk 0:00:09]} 51. Nf1 {[%clk 0:00:08]}  Bd3 {[%clk 0:00:08]} 52. exd4+ {[%clk 0:00:07]}  Kxd4 {[%clk 0:00:09]} 53. Nh2 {[%clk 0:00:07]}  Ke3 {[%clk 0:00:09]} 54. Kc1 {[%clk 0:00:07]}  Bf5 {[%clk 0:00:07]} 55. Nf1+ {[%clk 0:00:04]}  Kxf3 {[%clk 0:00:07]} 56. Kd2 {[%clk 0:00:05]}  g4 {[%clk 0:00:07]} 57. Ke1 {[%clk 0:00:05]}  g3 {[%clk 0:00:07]} 58. Nd2+ {[%clk 0:00:06]}  Kg2 {[%clk 0:00:07]} 59. Ke2 {[%clk 0:00:06]}  Kh1 {[%clk 0:00:07]} 60. Ke3 {[%clk 0:00:01]}  g2 {[%clk 0:00:06]} 61. Nf3 {[%clk 0:00:02]}  Bg4 {[%clk 0:00:06]} 62. Ne5 {[%clk 0:00:01]}  g1=Q+ {[%clk 0:00:06]} 0-1


[Site "https://www.chess.com"]

[Event "Titled Tuesday Blitz April 4 Early 2023"]
[White "Hakobyan, Aram"]
[Black "Milikow, Yoav"]
[WhiteFideId "13306677"]
[BlackFideId "2822237"]
[WhiteElo "2584"]
[BlackElo "2410"]
[Result "1-0"]
[Round "07"]
[TimeControl "180+2"]
[Date "2023.04.04"]
[WhiteClock "0:00:45"]
[BlackClock "0:00:02"]

1. d4 {[%clk 0:03:00]}  Nf6 {[%clk 0:02:57]} 2. c4 {[%clk 0:03:01]}  e6 {[%clk 0:02:57]} 3. Nc3 {[%clk 0:03:00]}  d5 {[%clk 0:02:56]} 4. Nf3 {[%clk 0:02:59]}  Bb4 {[%clk 0:02:54]} 5. Bg5 {[%clk 0:02:57]}  h6 {[%clk 0:02:39]} 6. Bxf6 {[%clk 0:02:58]}  Qxf6 {[%clk 0:02:40]} 7. e3 {[%clk 0:02:58]}  O-O {[%clk 0:02:37]} 8. Rc1 {[%clk 0:02:58]}  dxc4 {[%clk 0:02:34]} 9. Bxc4 {[%clk 0:02:59]}  c5 {[%clk 0:02:33]} 10. O-O {[%clk 0:02:59]}  cxd4 {[%clk 0:02:32]} 11. Ne4 {[%clk 0:02:59]}  Qe7 {[%clk 0:02:26]} 12. a3 {[%clk 0:02:59]}  Ba5 {[%clk 0:02:24]} 13. exd4 {[%clk 0:02:55]}  Rd8 {[%clk 0:02:21]} 14. b4 {[%clk 0:02:53]}  Bb6 {[%clk 0:02:19]} 15. Rc3 {[%clk 0:02:53]}  Nc6 {[%clk 0:02:17]} 16. Rd3 {[%clk 0:02:52]}  Bd7 {[%clk 0:02:10]} 17. Re1 {[%clk 0:02:49]}  Qf8 {[%clk 0:01:59]} 18. Ng3 {[%clk 0:02:39]}  Rac8 {[%clk 0:01:50]} 19. Bb3 {[%clk 0:02:37]}  Ne7 {[%clk 0:01:42]} 20. Ne5 {[%clk 0:02:33]}  Be8 {[%clk 0:01:31]} 21. Nh5 {[%clk 0:02:31]}  Kh8 {[%clk 0:01:22]} 22. Nf4 {[%clk 0:02:20]}  g5 {[%clk 0:01:09]} 23. Nh5 {[%clk 0:02:02]}  Ng8 {[%clk 0:00:41]} 24. Ng3 {[%clk 0:01:36]}  Rc7 {[%clk 0:00:31]} 25. Ne4 {[%clk 0:01:36]}  Qg7 {[%clk 0:00:26]} 26. Nc5 {[%clk 0:01:32]}  Bb5 {[%clk 0:00:24]} 27. Rd2 {[%clk 0:01:29]}  Nf6 {[%clk 0:00:20]} 28. Nxf7+ {[%clk 0:01:20]}  Rxf7 {[%clk 0:00:17]} 29. Nxe6 {[%clk 0:01:21]}  Qg6 {[%clk 0:00:17]} 30. Nxd8 {[%clk 0:01:21]}  Bxd8 {[%clk 0:00:18]} 31. Qf3 {[%clk 0:00:57]}  Rd7 {[%clk 0:00:11]} 32. a4 {[%clk 0:00:47]}  Bc6 {[%clk 0:00:10]} 33. d5 {[%clk 0:00:47]}  g4 {[%clk 0:00:09]} 34. Qc3 {[%clk 0:00:48]}  Qg5 {[%clk 0:00:07]} 35. Red1 {[%clk 0:00:46]}  Kh7 {[%clk 0:00:03]} 36. dxc6 {[%clk 0:00:46]}  Rxd2 {[%clk 0:00:04]} 37. Qxd2 {[%clk 0:00:45]}  Qxd2 {[%clk 0:00:02]} 38. Rxd2 {[%clk 0:00:45]}  Be7 {[%clk 0:00:02]} 39. c7 {[%clk 0:00:45]} 1-0


[Site "https://www.chess.com"]

[Event "Titled Tuesday Blitz April 4 Early 2023"]
[White "Zemlyanskii, Ivan"]
[Black "Lenderman, Aleksandr"]
[WhiteFideId "24249971"]
[BlackFideId "2021285"]
[WhiteElo "2419"]
[BlackElo "2607"]
[Result "1-0"]
[Round "07"]
[TimeControl "180+2"]
[Date "2023.04.04"]
[WhiteClock "0:00:18"]
[BlackClock "0:01:12"]

1. d4 {[%clk 0:03:00]}  d5 {[%clk 0:02:59]} 2. c4 {[%clk 0:02:56]}  e6 {[%clk 0:02:59]} 3. Nc3 {[%clk 0:02:51]}  a6 {[%clk 0:02:59]} 4. e3 {[%clk 0:02:42]}  Nf6 {[%clk 0:02:58]} 5. Nf3 {[%clk 0:02:37]}  c5 {[%clk 0:02:58]} 6. cxd5 {[%clk 0:02:34]}  exd5 {[%clk 0:02:59]} 7. g3 {[%clk 0:02:34]}  c4 {[%clk 0:02:55]} 8. Bg2 {[%clk 0:02:33]}  Bb4 {[%clk 0:02:49]} 9. Bd2 {[%clk 0:02:14]}  O-O {[%clk 0:02:46]} 10. O-O {[%clk 0:02:14]}  b5 {[%clk 0:02:39]} 11. Ne5 {[%clk 0:02:09]}  Be7 {[%clk 0:02:34]} 12. b3 {[%clk 0:02:00]}  b4 {[%clk 0:02:33]} 13. Nxd5 {[%clk 0:01:56]}  Nxd5 {[%clk 0:02:31]} 14. bxc4 {[%clk 0:01:56]}  Nc7 {[%clk 0:02:31]} 15. Qa4 {[%clk 0:01:38]}  Ra7 {[%clk 0:02:27]} 16. Bxb4 {[%clk 0:01:37]}  Bb7 {[%clk 0:02:24]} 17. Rab1 {[%clk 0:01:31]}  Bxg2 {[%clk 0:02:22]} 18. Kxg2 {[%clk 0:01:32]}  Ne6 {[%clk 0:02:13]} 19. Bxe7 {[%clk 0:01:16]}  Qxe7 {[%clk 0:02:14]} 20. Rb2 {[%clk 0:01:11]}  Nc5 {[%clk 0:01:59]} 21. Qa3 {[%clk 0:00:51]}  Ne4 {[%clk 0:01:59]} 22. Qd3 {[%clk 0:00:50]}  Nf6 {[%clk 0:01:57]} 23. Rfb1 {[%clk 0:00:50]}  Nfd7 {[%clk 0:01:53]} 24. Qe4 {[%clk 0:00:44]}  Nxe5 {[%clk 0:01:45]} 25. Rxb8 {[%clk 0:00:44]}  Ng6 {[%clk 0:01:45]} 26. Rxf8+ {[%clk 0:00:41]}  Nxf8 {[%clk 0:01:44]} 27. Qxe7 {[%clk 0:00:30]}  Rxe7 {[%clk 0:01:45]} 28. Rb8 {[%clk 0:00:30]}  Ra7 {[%clk 0:01:37]} 29. c5 {[%clk 0:00:29]}  f6 {[%clk 0:01:37]} 30. Kf3 {[%clk 0:00:29]}  Kf7 {[%clk 0:01:37]} 31. Ke4 {[%clk 0:00:30]}  Ne6 {[%clk 0:01:37]} 32. Kd5 {[%clk 0:00:27]}  Ke7 {[%clk 0:01:34]} 33. Kc6 {[%clk 0:00:26]}  Nd8+ {[%clk 0:01:28]} 34. Kb6 {[%clk 0:00:23]}  Rd7 {[%clk 0:01:29]} 35. Kxa6 {[%clk 0:00:21]}  Nc6 {[%clk 0:01:27]} 36. Rb7 {[%clk 0:00:20]}  Rxb7 {[%clk 0:01:21]} 37. Kxb7 {[%clk 0:00:21]}  Kd7 {[%clk 0:01:22]} 38. a4 {[%clk 0:00:21]}  Na5+ {[%clk 0:01:22]} 39. Kb6 {[%clk 0:00:21]}  Nc4+ {[%clk 0:01:22]} 40. Kb5 {[%clk 0:00:21]}  Na3+ {[%clk 0:01:19]} 41. Kb4 {[%clk 0:00:20]}  Nc2+ {[%clk 0:01:19]} 42. Kc4 {[%clk 0:00:20]}  Na3+ {[%clk 0:01:16]} 43. Kd5 {[%clk 0:00:20]}  Nb1 {[%clk 0:01:14]} 44. a5 {[%clk 0:00:16]}  Nc3+ {[%clk 0:01:15]} 45. Kc4 {[%clk 0:00:16]}  Nd1 {[%clk 0:01:15]} 46. a6 {[%clk 0:00:17]}  Kc7 {[%clk 0:01:14]} 47. d5 {[%clk 0:00:17]}  Nxf2 {[%clk 0:01:12]} 48. d6+ {[%clk 0:00:17]}  Kc6 {[%clk 0:01:12]} 49. a7 {[%clk 0:00:18]}  Kb7 {[%clk 0:01:12]} 50. a8=Q+ {[%clk 0:00:17]}  Kxa8 {[%clk 0:01:12]} 51. d7 {[%clk 0:00:18]} 1-0


[Site "https://www.chess.com"]

[Event "Titled Tuesday Blitz April 4 Early 2023"]
[White "Gurel, Ediz"]
[Black "Flores, Diego"]
[WhiteFideId "44507356"]
[BlackFideId "108049"]
[WhiteElo "2352"]
[BlackElo "2613"]
[Result "1-0"]
[Round "07"]
[TimeControl "180+2"]
[Date "2023.04.04"]
[WhiteClock "0:01:07"]
[BlackClock "0:00:50"]

1. e4 {[%clk 0:03:00]}  c5 {[%clk 0:02:59]} 2. Nc3 {[%clk 0:02:57]}  Nc6 {[%clk 0:02:58]} 3. g3 {[%clk 0:02:56]}  g6 {[%clk 0:02:58]} 4. Bg2 {[%clk 0:02:57]}  Bg7 {[%clk 0:02:59]} 5. Nge2 {[%clk 0:02:57]}  e6 {[%clk 0:02:51]} 6. d3 {[%clk 0:02:55]}  Nge7 {[%clk 0:02:51]} 7. Be3 {[%clk 0:02:55]}  Nd4 {[%clk 0:02:51]} 8. Qd2 {[%clk 0:02:55]}  d6 {[%clk 0:02:44]} 9. h4 {[%clk 0:02:53]}  h5 {[%clk 0:02:33]} 10. O-O {[%clk 0:02:42]}  e5 {[%clk 0:02:32]} 11. Nd1 {[%clk 0:02:31]}  O-O {[%clk 0:02:24]} 12. c3 {[%clk 0:02:29]}  Ne6 {[%clk 0:02:01]} 13. d4 {[%clk 0:02:18]}  exd4 {[%clk 0:01:17]} 14. cxd4 {[%clk 0:02:19]}  d5 {[%clk 0:01:18]} 15. dxc5 {[%clk 0:01:37]}  d4 {[%clk 0:01:18]} 16. Bh6 {[%clk 0:01:37]}  d3 {[%clk 0:01:11]} 17. Nec3 {[%clk 0:01:31]}  Bxh6 {[%clk 0:00:59]} 18. Qxh6 {[%clk 0:01:32]}  Nxc5 {[%clk 0:00:58]} 19. Ne3 {[%clk 0:01:29]}  Qd4 {[%clk 0:00:51]} 20. Ncd5 {[%clk 0:01:06]}  Nxd5 {[%clk 0:00:50]} 21. Nxd5 {[%clk 0:01:07]}  Be6 {[%clk 0:00:50]} 22. Ne7# {[%clk 0:01:07]} 1-0


[Site "https://www.chess.com"]

[Event "Titled Tuesday Blitz April 4 Early 2023"]
[White "Indjic, Aleksandar"]
[Black "Kilic, Eray"]
[WhiteFideId "911925"]
[BlackFideId "44517173"]
[WhiteElo "2614"]
[BlackElo "2328"]
[Result "1-0"]
[Round "07"]
[TimeControl "180+2"]
[Date "2023.04.04"]
[WhiteClock "0:01:39"]
[BlackClock "0:00:53"]

1. e4 {[%clk 0:03:00]}  c5 {[%clk 0:02:57]} 2. Nc3 {[%clk 0:03:01]}  Nc6 {[%clk 0:02:57]} 3. Bb5 {[%clk 0:03:00]}  Nd4 {[%clk 0:02:58]} 4. Nf3 {[%clk 0:03:00]}  e6 {[%clk 0:02:58]} 5. Bd3 {[%clk 0:02:57]}  Nc6 {[%clk 0:02:58]} 6. O-O {[%clk 0:02:57]}  a6 {[%clk 0:02:49]} 7. b3 {[%clk 0:02:56]}  g6 {[%clk 0:02:48]} 8. Bb2 {[%clk 0:02:56]}  Bg7 {[%clk 0:02:49]} 9. Na4 {[%clk 0:02:55]}  Bxb2 {[%clk 0:02:47]} 10. Nxb2 {[%clk 0:02:56]}  d6 {[%clk 0:02:47]} 11. Re1 {[%clk 0:02:55]}  Nge7 {[%clk 0:02:40]} 12. e5 {[%clk 0:02:55]}  dxe5 {[%clk 0:02:34]} 13. Nxe5 {[%clk 0:02:51]}  O-O {[%clk 0:02:34]} 14. a4 {[%clk 0:02:46]}  Qc7 {[%clk 0:02:32]} 15. Nbc4 {[%clk 0:02:46]}  Nxe5 {[%clk 0:02:32]} 16. Nxe5 {[%clk 0:02:44]}  Nc6 {[%clk 0:02:28]} 17. Nxc6 {[%clk 0:02:43]}  Qxc6 {[%clk 0:02:28]} 18. a5 {[%clk 0:02:43]}  Rd8 {[%clk 0:02:27]} 19. Ra4 {[%clk 0:02:42]}  Rd4 {[%clk 0:02:24]} 20. Rxd4 {[%clk 0:02:34]}  cxd4 {[%clk 0:02:25]} 21. Qe2 {[%clk 0:02:30]}  Qd6 {[%clk 0:01:25]} 22. Qe5 {[%clk 0:02:18]}  Qxe5 {[%clk 0:01:25]} 23. Rxe5 {[%clk 0:02:18]}  Bd7 {[%clk 0:01:26]} 24. Re4 {[%clk 0:02:18]}  Rc8 {[%clk 0:01:23]} 25. Rxd4 {[%clk 0:02:18]}  Bb5 {[%clk 0:01:23]} 26. Bxb5 {[%clk 0:02:15]}  axb5 {[%clk 0:01:24]} 27. c3 {[%clk 0:02:15]}  Ra8 {[%clk 0:01:20]} 28. b4 {[%clk 0:01:52]}  b6 {[%clk 0:01:20]} 29. a6 {[%clk 0:01:51]}  Rxa6 {[%clk 0:01:20]} 30. Kf1 {[%clk 0:01:52]}  Kf8 {[%clk 0:01:18]} 31. Rd7 {[%clk 0:01:50]}  Kg7 {[%clk 0:01:04]} 32. Ke2 {[%clk 0:01:48]}  Kf6 {[%clk 0:01:04]} 33. g3 {[%clk 0:01:42]}  e5 {[%clk 0:01:00]} 34. Rd5 {[%clk 0:01:41]}  Ke6 {[%clk 0:00:57]} 35. Rxb5 {[%clk 0:01:41]}  Kd6 {[%clk 0:00:57]} 36. c4 {[%clk 0:01:39]}  f6 {[%clk 0:00:52]} 37. Rd5+ {[%clk 0:01:39]}  Kc6 {[%clk 0:00:53]} 38. b5+ {[%clk 0:01:39]} 1-0


[Site "https://www.chess.com"]

[Event "Titled Tuesday Blitz April 4 Early 2023"]
[White "Yanchenko, Roman"]
[Black "Drygalov, Andrey"]
[WhiteFideId "4137329"]
[BlackFideId "24171735"]
[WhiteElo "2491"]
[BlackElo "2466"]
[Result "1-0"]
[Round "07"]
[TimeControl "180+2"]
[Date "2023.04.04"]
[WhiteClock "0:01:10"]
[BlackClock "0:00:08"]

1. d4 {[%clk 0:03:00]}  Nf6 {[%clk 0:02:55]} 2. Nf3 {[%clk 0:03:00]}  d5 {[%clk 0:02:54]} 3. c4 {[%clk 0:03:00]}  e6 {[%clk 0:02:51]} 4. Nc3 {[%clk 0:03:00]}  c6 {[%clk 0:02:52]} 5. Bg5 {[%clk 0:03:00]}  h6 {[%clk 0:02:52]} 6. Bh4 {[%clk 0:03:00]}  Be7 {[%clk 0:02:52]} 7. e3 {[%clk 0:03:01]}  O-O {[%clk 0:02:51]} 8. Qc2 {[%clk 0:03:01]}  Nbd7 {[%clk 0:02:52]} 9. Rd1 {[%clk 0:03:01]}  a6 {[%clk 0:02:51]} 10. a3 {[%clk 0:03:02]}  Re8 {[%clk 0:02:50]} 11. h3 {[%clk 0:03:02]}  dxc4 {[%clk 0:02:33]} 12. Bxc4 {[%clk 0:03:02]}  b5 {[%clk 0:02:33]} 13. Ba2 {[%clk 0:03:02]}  Bb7 {[%clk 0:02:32]} 14. O-O {[%clk 0:03:02]}  Qb6 {[%clk 0:02:26]} 15. Ne5 {[%clk 0:02:39]}  c5 {[%clk 0:02:15]} 16. dxc5 {[%clk 0:02:05]}  Nxc5 {[%clk 0:02:13]} 17. Bb1 {[%clk 0:01:57]}  Nce4 {[%clk 0:01:37]} 18. Bxf6 {[%clk 0:01:50]}  Nxf6 {[%clk 0:01:32]} 19. Nd7 {[%clk 0:01:50]}  Qc6 {[%clk 0:01:22]} 20. Nxf6+ {[%clk 0:01:40]}  Bxf6 {[%clk 0:01:23]} 21. Qh7+ {[%clk 0:01:38]}  Kf8 {[%clk 0:01:23]} 22. Be4 {[%clk 0:01:30]}  Qc7 {[%clk 0:01:22]} 23. Bxb7 {[%clk 0:01:25]}  Qxb7 {[%clk 0:01:22]} 24. Ne4 {[%clk 0:01:25]}  Be5 {[%clk 0:00:40]} 25. Nc5 {[%clk 0:01:12]}  Qc7 {[%clk 0:00:07]} 26. Rd7 {[%clk 0:01:11]}  g6 {[%clk 0:00:08]} 27. Qxf7# {[%clk 0:01:10]} 1-0


[Site "https://www.chess.com"]

[Event "Titled Tuesday Blitz April 4 Early 2023"]
[White "Durarbayli, Vasif"]
[Black "Csonka, Balazs"]
[WhiteFideId "13402935"]
[BlackFideId "742910"]
[WhiteElo "2551"]
[BlackElo "2404"]
[Result "1/2-1/2"]
[Round "07"]
[TimeControl "180+2"]
[Date "2023.04.04"]
[WhiteClock "0:00:10"]
[BlackClock "0:00:05"]

1. e4 {[%clk 0:03:00]}  c6 {[%clk 0:02:57]} 2. d4 {[%clk 0:02:54]}  d5 {[%clk 0:02:57]} 3. exd5 {[%clk 0:02:55]}  cxd5 {[%clk 0:02:56]} 4. c4 {[%clk 0:02:56]}  Nf6 {[%clk 0:02:56]} 5. Nc3 {[%clk 0:02:57]}  Nc6 {[%clk 0:02:55]} 6. Nf3 {[%clk 0:02:57]}  Bg4 {[%clk 0:02:55]} 7. cxd5 {[%clk 0:02:57]}  Nxd5 {[%clk 0:02:55]} 8. Qb3 {[%clk 0:02:57]}  Bxf3 {[%clk 0:02:53]} 9. gxf3 {[%clk 0:02:58]}  e6 {[%clk 0:02:54]} 10. Qxb7 {[%clk 0:02:58]}  Nxd4 {[%clk 0:02:52]} 11. Bb5+ {[%clk 0:02:58]}  Nxb5 {[%clk 0:02:51]} 12. Qc6+ {[%clk 0:02:59]}  Ke7 {[%clk 0:02:51]} 13. Qc5+ {[%clk 0:02:59]}  Ke8 {[%clk 0:01:35]} 14. Qc6+ {[%clk 0:02:56]}  Ke7 {[%clk 0:01:34]} 15. Qc5+ {[%clk 0:02:57]}  Ke8 {[%clk 0:01:34]} 16. Qxb5+ {[%clk 0:02:57]}  Qd7 {[%clk 0:01:34]} 17. Nxd5 {[%clk 0:02:57]}  exd5 {[%clk 0:01:34]} 18. Qe2+ {[%clk 0:02:56]}  Qe6 {[%clk 0:01:27]} 19. Be3 {[%clk 0:02:55]}  f6 {[%clk 0:01:16]} 20. O-O-O {[%clk 0:02:45]}  Kf7 {[%clk 0:01:15]} 21. Qd3 {[%clk 0:02:36]}  d4 {[%clk 0:01:02]} 22. Bxd4 {[%clk 0:02:06]}  Qxa2 {[%clk 0:01:01]} 23. Bc3 {[%clk 0:01:46]}  Be7 {[%clk 0:00:54]} 24. Rhe1 {[%clk 0:01:38]}  Rhd8 {[%clk 0:00:37]} 25. Qe4 {[%clk 0:01:33]}  Rxd1+ {[%clk 0:00:29]} 26. Kxd1 {[%clk 0:01:34]}  Rd8+ {[%clk 0:00:25]} 27. Kc2 {[%clk 0:01:34]}  Rd7 {[%clk 0:00:22]} 28. f4 {[%clk 0:00:48]}  Qd5 {[%clk 0:00:16]} 29. Qxh7 {[%clk 0:00:43]}  Qf3 {[%clk 0:00:07]} 30. Qe4 {[%clk 0:00:35]}  Qxe4+ {[%clk 0:00:04]} 31. Rxe4 {[%clk 0:00:36]}  Bc5 {[%clk 0:00:04]} 32. f3 {[%clk 0:00:32]}  Kg6 {[%clk 0:00:04]} 33. Be1 {[%clk 0:00:12]}  Kf5 {[%clk 0:00:04]} 34. Bg3 {[%clk 0:00:13]}  Bb6 {[%clk 0:00:04]} 35. Rc4 {[%clk 0:00:13]}  Rc7 {[%clk 0:00:03]} 36. Kd3 {[%clk 0:00:12]}  Rxc4 {[%clk 0:00:03]} 37. Kxc4 {[%clk 0:00:13]}  Bc7 {[%clk 0:00:04]} 38. Kb5 {[%clk 0:00:13]}  Bxf4 {[%clk 0:00:04]} 39. Ka6 {[%clk 0:00:07]}  Be3 {[%clk 0:00:04]} 40. Bb8 {[%clk 0:00:07]}  g5 {[%clk 0:00:02]} 41. b4 {[%clk 0:00:07]}  g4 {[%clk 0:00:02]} 42. fxg4+ {[%clk 0:00:05]}  Kxg4 {[%clk 0:00:03]} 43. Bxa7 {[%clk 0:00:04]}  Bxa7 {[%clk 0:00:03]} 44. Kxa7 {[%clk 0:00:05]}  f5 {[%clk 0:00:03]} 45. b5 {[%clk 0:00:06]}  f4 {[%clk 0:00:04]} 46. b6 {[%clk 0:00:07]}  f3 {[%clk 0:00:05]} 47. b7 {[%clk 0:00:08]}  f2 {[%clk 0:00:05]} 48. b8=Q {[%clk 0:00:09]}  f1=Q {[%clk 0:00:06]} 49. Qg3+ {[%clk 0:00:09]}  Kh5 {[%clk 0:00:06]} 50. Kb6 {[%clk 0:00:09]}  Qf6+ {[%clk 0:00:04]} 51. Kc5 {[%clk 0:00:09]}  Qg5+ {[%clk 0:00:03]} 52. Kd4 {[%clk 0:00:10]}  Qxg3 {[%clk 0:00:03]} 53. hxg3 {[%clk 0:00:10]}  Kg4 {[%clk 0:00:04]} 54. Ke4 {[%clk 0:00:10]}  Kxg3 {[%clk 0:00:05]} 1/2-1/2


[Site "https://www.chess.com"]